fUSD/lending_fUSD_20250806
["ID","MTS","AMOUNT","RATE_DAILY","PERIOD"]
[377580366,1754448645030,-158.604099,0.00035616,14]
[377580368,1754448645039,-400.0,0.00035616,14]
[377580370,1754448645048,-400.0,0.00035616,14]
[377580372,1754448645057,-517.54,0.00035616,14]
[377580374,1754448645067,-1879.66,0.00035616,14]
[377580376,1754448645076,-400.0,0.00035616,2]
[377580378,1754448645085,-400.0,0.00035616,14]
[377580380,1754448645094,-442.19336548,0.00035616,14]
[377580382,1754448645105,-164.36084,0.00035616,14]
[377580384,1754448645114,-400.0,0.00035616,14]
[377580386,1754448645124,-400.0,0.00035616,14]
[377580388,1754448645133,-400.0,0.00035616,14]
[377580390,1754448645144,-933.27,0.00035616,14]
[377580392,1754448645153,-400.0,0.00035616,14]
[377580394,1754448645162,-400.0,0.00035616,14]
[377580396,1754448645171,-400.0,0.00035616,14]
[377580398,1754448645180,-708.86,0.00035616,14]
[377580400,1754448645189,-412.42,0.00035616,14]
[377580402,1754448645198,-157.046809,0.00035616,7]
[377580404,1754448645208,-400.0,0.00035616,14]
[377580406,1754448645217,-400.0,0.00035616,14]
[377580408,1754448645226,-400.0,0.00035616,14]
[377580410,1754448645235,-400.0,0.00035616,14]
[377580412,1754448645244,-400.0,0.00035616,14]
[377580414,1754448645254,-400.0,0.00035616,14]
[377580416,1754448645263,-461.2552937,0.00035616,14]
[377580418,1754448645272,-415.77,0.00035616,14]
[377580420,1754448645281,-1925.55,0.00035616,14]
[377580422,1754448645290,-165.794744,0.00035616,14]
[377580424,1754448645299,-400.0,0.00035616,14]
[377580426,1754448645310,-400.0,0.00035616,14]
[377580428,1754448645319,-160.207954,0.00035616,14]
[377580430,1754448645328,-158.6041,0.00035616,14]
[377580432,1754448645337,-866.96,0.00035616,14]
[377580434,1754448645347,-523.82,0.00035616,14]
[377580435,1754448645356,-160.611332,0.00035616,7]
[377580437,1754448645366,-400.0,0.00035616,14]
[377580439,1754448645375,-243.385005,0.00035616,14]
[377580441,1754448645384,-400.0,0.00035616,14]
[377580443,1754448645393,-400.0,0.00035616,14]
[377580445,1754448645402,-400.0,0.00035616,14]
[377580447,1754448645412,-1993.73,0.00035616,14]
[377580449,1754448645421,-400.0,0.00035616,14]
[377580451,1754448645430,-478.37,0.00035616,14]
[377580453,1754448645440,-400.71370245,0.00035616,14]
[377580455,1754448645449,-1455.59,0.00035616,14]
[377580457,1754448645459,-400.0,0.00035616,14]
[377580460,1754448645468,-1137.51,0.00035616,14]
[377580462,1754448645477,-300.0,0.00035616,14]
[377580464,1754448645486,-400.0,0.00035616,14]
[377580466,1754448645495,-400.0,0.00035616,14]
[377580468,1754448645505,-400.0,0.00035616,14]
[377580470,1754448645514,-1494.66,0.00035616,14]
[377580472,1754448645524,-2002.12,0.00035616,14]
[377580474,1754448645533,-400.0,0.00035616,14]
[377580476,1754448645542,-400.0,0.00035616,14]
[377580477,1754448645551,-151.0,0.00035616,7]
[377580480,1754448645561,-400.0,0.00035616,14]
[377580481,1754448645570,-1040.39,0.00035616,14]
[377580483,1754448645579,-400.0,0.00035616,14]
[377580485,1754448645588,-400.0,0.00035616,14]
[377580487,1754448645598,-400.0,0.00035616,14]
[377580489,1754448645607,-400.0,0.00035616,14]
[377580491,1754448645616,-662.16,0.00035616,14]
[377580493,1754448645625,-400.0,0.00035616,14]
[377580495,1754448645635,-400.0,0.00035616,14]
[377580497,1754448645644,-400.0,0.00035616,14]
[377580499,1754448645653,-365.93052518,0.00035616,14]
[377580501,1754448645663,-151.0,0.00035616,7]
[377580503,1754448645672,-400.0,0.00035616,14]
[377580505,1754448645681,-400.0,0.00035616,14]
[377580507,1754448645690,-290.57312499,0.00035616,14]
[377580509,1754448645699,-2153.57,0.00035616,14]
[377580511,1754448645708,-335.869079,0.00035616,14]
[377580513,1754448645717,-400.0,0.00035616,14]
[377580515,1754448645727,-334.82878853,0.00035616,14]
[377580517,1754448645736,-400.0,0.00035616,14]
[377580519,1754448645745,-1355.9,0.00035616,14]
[377580521,1754448645754,-461.32394826,0.00035616,14]
[377580523,1754448645763,-335.34429961,0.00035616,14]
[377580525,1754448645773,-904.68,0.00035616,14]
[377580527,1754448645782,-400.0,0.00035616,14]
[377580529,1754448645792,-400.0,0.00035616,14]
[377580531,1754448645801,-545.31,0.00035616,14]
[377580532,1754448645811,-400.0,0.00035616,14]
[377580534,1754448645821,-400.0,0.00035616,14]
[377580536,1754448645830,-400.0,0.00035616,14]
[377580538,1754448645839,-400.0,0.00035616,14]
[377580540,1754448645853,-726.19,0.00035616,14]
[377580542,1754448645862,-400.0,0.00035616,14]
[377580544,1754448645872,-1848.23,0.00035616,14]
[377580546,1754448645881,-403.97821217,0.00035616,14]
[377580548,1754448645891,-837.58,0.00035616,14]
[377580550,1754448645900,-400.0,0.00035616,14]
[377580552,1754448645909,-400.0,0.00035616,14]
[377580554,1754448645918,-400.0,0.00035616,14]
[377580556,1754448645928,-400.0,0.00035616,14]
[377580558,1754448645939,-426.53,0.00035616,14]
[377580560,1754448645948,-2053.66,0.00035616,14]
[377580562,1754448645961,-153.74552,0.00035616,7]
[377580564,1754448645971,-400.0,0.00035616,14]
[377580566,1754448645981,-463.84,0.00035616,14]
[377580568,1754448645991,-1680.73,0.00035616,14]
[377580571,1754448646001,-400.0,0.00035616,14]
[377580573,1754448646011,-400.0,0.00035616,14]
[377580575,1754448646022,-589.79,0.00035616,14]
[377580577,1754448646032,-400.0,0.00035616,14]
[377580579,1754448646041,-400.0,0.00035616,14]
[377580581,1754448646051,-400.85757494,0.00035616,14]
[377580583,1754448646060,-481.31601417,0.00035616,14]
[377580585,1754448646070,-400.0,0.00035616,5]
[377580587,1754448646079,-485.82,0.00035616,14]
[377580589,1754448646088,-400.0,0.00035616,14]
[377580591,1754448646099,-1174.99,0.00035616,14]
[377580593,1754448646109,-1560.83,0.00035616,14]
[377580595,1754448646120,-1343.09,0.00035616,14]
[377580597,1754448646130,-400.45455091,0.00035616,14]
[377580599,1754448646139,-400.0,0.00035616,14]
[377580600,1754448646149,-400.0,0.00035616,14]
[377580602,1754448646159,-465.61683648,0.00035616,14]
[377580604,1754448646169,-400.0,0.00035616,14]
[377580606,1754448646179,-400.0,0.00035616,14]
[377580608,1754448646188,-400.0,0.00035616,14]
[377580610,1754448646198,-239.70178266,0.00035616,14]
[377580612,1754448646208,-400.0,0.00035616,14]
[377580614,1754448646218,-400.0,0.00035616,14]
[377580616,1754448646227,-400.0,0.00035616,14]
[377580618,1754448646237,-652.79,0.00035616,14]
[377580620,1754448646247,-807.49,0.00035616,14]
[377580621,1754448646256,-2272.01,0.00035616,14]
[377580623,1754448646265,-439.11,0.00035616,14]
[377580625,1754448646275,-400.0,0.00035616,14]
[377580627,1754448646284,-400.0,0.00035616,14]
[377580629,1754448646294,-1269.54,0.00035616,14]
[377580631,1754448646304,-400.0,0.00035616,14]
[377580633,1754448646315,-400.0,0.00035616,14]
[377580635,1754448646324,-1601.77,0.00035616,14]
[377580637,1754448646334,-400.0,0.00035616,14]
[377580639,1754448646343,-549.88,0.00035616,14]
[377580641,1754448646353,-691.52,0.00035616,14]
[377580643,1754448646363,-400.0,0.00035616,14]
[377580645,1754448646374,-400.0,0.00035616,14]
[377580647,1754448646385,-400.0,0.00035616,14]
[377580649,1754448646394,-937.63,0.00035616,14]
[377580651,1754448646406,-1238.53,0.00035616,14]
[377580653,1754448646416,-758.93,0.00035616,14]
[377580655,1754448646426,-842.35,0.00035616,14]
[377580658,1754448646436,-400.0,0.00035616,14]
[377580659,1754448646446,-1051.66,0.00035616,14]
[377580662,1754448646456,-566.9,0.00035616,14]
[377580664,1754448646467,-1884.93,0.00035616,14]
[377580666,1754448646477,-1133.77,0.00035616,14]
[377580668,1754448646487,-400.0,0.00035616,14]
[377580670,1754448646497,-1135.75,0.00035616,14]
[377580672,1754448646507,-400.0,0.00035616,14]
[377580674,1754448646520,-400.36200891,0.00035616,14]
[377580676,1754448646530,-1340.96,0.00035616,14]
[377580678,1754448646540,-400.0,0.00035616,14]
[377580680,1754448646549,-400.0,0.00035616,14]
[377580682,1754448646559,-1269.95,0.00035616,14]
[377580684,1754448646568,-1245.02,0.00035616,14]
[377580686,1754448646578,-400.0,0.00035616,14]
[377580688,1754448646587,-400.0,0.00035616,14]
[377580690,1754448646597,-400.0,0.00035616,14]
[377580692,1754448646606,-400.0,0.00035616,14]
[377580694,1754448646616,-400.96,0.00035616,14]
[377580696,1754448646625,-888.4,0.00035616,14]
[377580698,1754448646635,-1391.51,0.00035616,14]
[377580700,1754448646645,-885.84,0.00035616,14]
[377580702,1754448646655,-400.0,0.00035616,14]
[377580704,1754448646675,-400.0,0.00035616,14]
[377580706,1754448646692,-2022.35,0.00035616,14]
[377580708,1754448646702,-400.0,0.00035616,14]
[377580710,1754448646716,-1485.63,0.00035616,14]
[377580712,1754448646728,-577.94,0.00035616,14]
[377580714,1754448646739,-484.52472931,0.00035616,14]
[377580716,1754448646758,-2205.6,0.00035616,14]
[377580718,1754448646768,-400.0,0.00035616,14]
[377580720,1754448646778,-400.0,0.00035616,14]
[377580722,1754448646788,-594.52,0.00035616,14]
[377580724,1754448646798,-400.0,0.00035616,14]
[377580726,1754448646808,-516.69,0.00035616,14]
[377580728,1754448646818,-151.0,0.00035616,7]
[377580730,1754448646828,-151.0,0.00035616,7]
[377580732,1754448646838,-400.0,0.00035616,14]
[377580734,1754448646849,-400.99,0.00035616,14]
[377580736,1754448646861,-400.0,0.00035616,14]
[377580738,1754448646871,-400.0,0.00035616,14]
[377580740,1754448646880,-400.0,0.00035616,14]
[377580742,1754448646890,-400.0,0.00035616,14]
[377580744,1754448646900,-400.0,0.00035616,14]
[377580746,1754448646910,-963.31,0.00035616,14]
[377580748,1754448646920,-798.43,0.00035616,14]
[377580750,1754448646932,-400.0,0.00035616,14]
[377580752,1754448646942,-1016.03,0.00035616,14]
[377580754,1754448646952,-1016.03,0.00035616,14]
[377580756,1754448646962,-400.0,0.00035616,14]
[377580758,1754448646973,-400.18827001,0.00035616,14]
[377580760,1754448646985,-1016.03,0.00035616,14]
[377580761,1754448646995,-1016.03,0.00035616,14]
[377580762,1754448647005,-1016.03,0.00035616,14]
[377580763,1754448647015,-1016.03,0.00035616,14]
[377580764,1754448647025,-1016.03,0.00035616,14]
[377580765,1754448647035,-1016.03,0.00035616,14]
[377580766,1754448647046,-400.0,0.00035616,14]
[377580767,1754448647057,-400.0,0.00035616,14]
[377580768,1754448647067,-825.61,0.00035616,14]
[377580769,1754448647076,-400.0,0.00035616,14]
[377580770,1754448647086,-400.0,0.00035616,14]
[377580771,1754448647096,-400.0,0.00035616,14]
[377580772,1754448647107,-400.0,0.00035616,14]
[377580773,1754448647117,-402.46574624,0.00035616,14]
[377580774,1754448647126,-400.0,0.00035616,14]
[377580776,1754448647136,-425.14,0.00035616,14]
[377580778,1754448647147,-1955.89,0.00035616,14]
[377580780,1754448647156,-400.0,0.00035616,14]
[377580782,1754448647166,-400.0,0.00035616,14]
[377580784,1754448647176,-872.75,0.00035616,14]
[377580786,1754448647186,-672.46,0.00035616,14]
[377580788,1754448647196,-666.07,0.00035616,14]
[377580789,1754448647206,-400.0,0.00035616,7]
[377580792,1754448647216,-151.0,0.00035616,7]
[377580794,1754448647225,-151.0,0.00035616,7]
[377580796,1754448647236,-151.0,0.00035616,7]
[377580798,1754448647246,-151.0,0.00035616,7]
[377580800,1754448647256,-400.0,0.00035616,14]
[377580802,1754448647266,-2048.4,0.00035616,14]
[377580804,1754448647276,-400.0,0.00035616,14]
[377580806,1754448647286,-151.0,0.00035616,7]
[377580808,1754448647299,-151.0,0.00035616,7]
[377580810,1754448647310,-1186.37,0.00035616,14]
[377580812,1754448647320,-400.0,0.00035616,14]
[377580814,1754448647329,-400.70172953,0.00035616,14]
[377580816,1754448647339,-1867.25,0.00035616,14]
[377580818,1754448647349,-400.0,0.00035616,14]
[377580820,1754448647358,-400.0,0.00035616,14]
[377580822,1754448647368,-400.0,0.00035616,14]
[377580824,1754448647378,-400.0,0.00035616,14]
[377580826,1754448647387,-400.0,0.00035616,14]
[377580828,1754448647397,-400.0,0.00035616,14]
[377580830,1754448647407,-400.0,0.00035616,14]
[377580832,1754448647416,-151.0,0.00035616,7]
[377580834,1754448647427,-153.896598,0.00035616,7]
[377580836,1754448647436,-400.0,0.00035616,14]
[377580838,1754448647446,-1486.37,0.00035616,14]
[377580840,1754448647455,-546.47,0.00035616,14]
[377580842,1754448647465,-1282.75,0.00035616,14]
[377580844,1754448647475,-400.0,0.00035616,14]
[377580846,1754448647486,-620.41,0.00035616,14]
[377580848,1754448647496,-400.0,0.00035616,14]
[377580850,1754448647506,-1685.19,0.00035616,14]
[377580852,1754448647516,-426.54,0.00035616,14]
[377580854,1754448647526,-151.0,0.00035616,7]
[377580857,1754448647535,-400.0,0.00035616,14]
[377580859,1754448647545,-400.0,0.00035616,14]
[377580861,1754448647555,-400.0,0.00035616,14]
[377580863,1754448647564,-152.203874,0.00035616,7]
[377580865,1754448647573,-400.32029226,0.00035616,14]
[377580867,1754448647583,-607.47,0.00035616,14]
[377580869,1754448647592,-1042.07,0.00035616,14]
[377580871,1754448647601,-400.0,0.00035616,14]
[377580873,1754448647611,-500.0,0.00035616,14]
[377580875,1754448647621,-500.0,0.00035616,14]
[377580877,1754448647631,-500.0,0.00035616,14]
[377580879,1754448647640,-500.0,0.00035616,14]
[377580881,1754448647650,-500.0,0.00035616,14]
[377580883,1754448647659,-500.0,0.00035616,14]
[377580885,1754448647669,-500.0,0.00035616,14]
[377580887,1754448647678,-1387.34,0.00035616,14]
[377580889,1754448647688,-151.0,0.00035616,7]
[377580891,1754448647698,-400.0,0.00035616,14]
[377580893,1754448647708,-1608.62,0.00035616,14]
[377580895,1754448647718,-640.46,0.00035616,14]
[377580897,1754448647728,-225.463491,0.00035616,7]
[377580899,1754448647738,-500.0,0.00035616,14]
[377580901,1754448647750,-1266.36,0.00035616,14]
[377580903,1754448647763,-400.0,0.00035616,14]
[377580905,1754448647772,-1198.83,0.00035616,14]
[377580907,1754448647782,-400.0,0.00035616,2]
[377580909,1754448647792,-850.06,0.00035616,14]
[377580911,1754448647802,-400.33075791,0.00035616,14]
[377580913,1754448647811,-1040.96,0.00035616,14]
[377580915,1754448647821,-384.22716751,0.00035616,14]
[377580917,1754448647831,-2213.68,0.00035616,14]
[377580919,1754448647841,-400.0,0.00035616,14]
[377580921,1754448647851,-151.0,0.00035616,7]
[377580923,1754448647863,-400.0,0.00035616,14]
[377580925,1754448647873,-151.0,0.00035616,7]
[377580927,1754448647882,-151.0,0.00035616,7]
[377580929,1754448647893,-400.0,0.00035616,14]
[377580931,1754448647903,-627.73,0.00035616,14]
[377580933,1754448647912,-400.0,0.00035616,14]
[377580935,1754448647922,-471.56,0.00035616,14]
[377580937,1754448647932,-400.0,0.00035616,14]
[377580939,1754448647942,-511.19,0.00035616,14]
[377580941,1754448647951,-400.0,0.00035616,14]
[377580943,1754448647961,-151.0,0.00035616,7]
[377580945,1754448647970,-400.0,0.00035616,14]
[377580947,1754448647980,-400.0,0.00035616,14]
[377580949,1754448647990,-400.0,0.00035616,14]
[377580951,1754448647999,-440.85,0.00035616,14]
[377580953,1754448648009,-860.58,0.00035616,14]
[377580955,1754448648018,-400.0,0.00035616,14]
[377580957,1754448648028,-400.77247234,0.00035616,14]
[377580959,1754448648038,-400.0,0.00035616,14]
[377580961,1754448648048,-1113.65,0.00035616,14]
[377580963,1754448648059,-400.0,0.00035616,14]
[377580965,1754448648069,-400.0,0.00035616,14]
[377580967,1754448648079,-400.0,0.00035616,14]
[377580969,1754448648093,-400.0,0.00035616,14]
[377580971,1754448648104,-400.0,0.00035616,14]
[377580973,1754448648114,-400.0,0.00035616,14]
[377580975,1754448648124,-985.67,0.00035616,14]
[377580977,1754448648133,-400.0,0.00035616,14]
[377580979,1754448648143,-400.0,0.00035616,14]
[377580981,1754448648153,-523.26,0.00035616,14]
[377580983,1754448648163,-400.0,0.00035616,14]
[377580985,1754448648173,-400.0,0.00035616,14]
[377580987,1754448648182,-531.05,0.00035616,14]
[377580989,1754448648192,-400.0,0.00035616,14]
[377580991,1754448648202,-1788.17,0.00035616,14]
[377580993,1754448648212,-400.0,0.00035616,14]
[377580995,1754448648222,-1913.41,0.00035616,14]
[377580997,1754448648231,-1243.8,0.00035616,14]
[377580999,1754448648241,-400.0,0.00035616,14]
[377581001,1754448648252,-400.0,0.00035616,14]
[377581004,1754448648262,-2195.18,0.00035616,14]
[377581045,1754448648632,-400.0,0.00035616,14]
[377581047,1754448648642,-973.74,0.00035616,14]
[377581049,1754448648652,-151.0,0.00035616,7]
[377581051,1754448648661,-151.0,0.00035616,7]
[377581053,1754448648671,-400.0,0.00035616,14]
[377581055,1754448648680,-400.0,0.00035616,14]
[377581057,1754448648689,-400.0,0.00035616,14]
[377581059,1754448648700,-151.0,0.00035616,7]
[377581061,1754448648709,-400.0,0.00035616,14]
[377581063,1754448648719,-400.0,0.00035616,14]
[377581065,1754448648728,-151.0,0.00035616,7]
[377581067,1754448648738,-400.0,0.00035616,14]
[377581069,1754448648747,-400.0,0.00035616,14]
[377581071,1754448648757,-151.0,0.00035616,7]
[377581073,1754448648767,-511.74,0.00035616,14]
[377581075,1754448648777,-400.0,0.00035616,14]
[377581077,1754448648786,-1237.93,0.00035616,14]
[377581079,1754448648796,-1927.1,0.00035616,14]
[377581081,1754448648805,-880.55,0.00035616,14]
[377581083,1754448648815,-1421.29,0.00035616,14]
[377581085,1754448648825,-1559.95,0.00035616,14]
[377581087,1754448648834,-151.0,0.00035616,7]
[377581089,1754448648844,-151.0,0.00035616,7]
[377581091,1754448648858,-400.0,0.00035616,14]
[377581093,1754448648868,-400.0,0.00035616,14]
[377581095,1754448648877,-400.0,0.00035616,14]
[377581097,1754448648887,-764.11,0.00035616,14]
[377581099,1754448648897,-400.0,0.00035616,14]
[377581101,1754448648906,-832.23,0.00035616,14]
[377581103,1754448648917,-400.0,0.00035616,14]
[377581105,1754448648928,-955.2,0.00035616,14]
[377581107,1754448648938,-1200.18,0.00035616,14]
[377581109,1754448648948,-955.2,0.00035616,14]
[377581111,1754448648959,-955.2,0.00035616,14]
[377581113,1754448648968,-400.0,0.00035616,14]
[377581115,1754448648978,-955.2,0.00035616,14]
[377581117,1754448648989,-982.62,0.00035616,14]
[377581119,1754448648999,-955.2,0.00035616,14]
[377581121,1754448649009,-955.2,0.00035616,14]
[377581123,1754448649019,-955.2,0.00035616,14]
[377581125,1754448649028,-955.2,0.00035616,14]
[377581127,1754448649038,-955.2,0.00035616,14]
[377581129,1754448649048,-955.2,0.00035616,14]
[377581131,1754448649058,-955.2,0.00035616,14]
[377581133,1754448649067,-400.0,0.00035616,14]
[377581135,1754448649076,-851.23,0.00035616,14]
[377581137,1754448649088,-955.2,0.00035616,14]
[377581140,1754448649098,-955.2,0.00035616,14]
[377581142,1754448649110,-955.2,0.00035616,14]
[377581144,1754448649120,-955.2,0.00035616,14]
[377581146,1754448649130,-955.2,0.00035616,14]
[377581148,1754448649140,-955.2,0.00035616,14]
[377581150,1754448649150,-955.2,0.00035616,14]
[377581152,1754448649160,-483.16,0.00035616,14]
[377581154,1754448649169,-955.2,0.00035616,14]
[377581156,1754448649179,-955.2,0.00035616,14]
[377581158,1754448649189,-955.2,0.00035616,14]
[377581160,1754448649198,-955.2,0.00035616,14]
[377581162,1754448649208,-400.0,0.00035616,14]
[377581164,1754448649218,-955.2,0.00035616,14]
[377581166,1754448649228,-955.39887589,0.00035616,14]
[377581168,1754448649238,-151.0,0.00035616,7]
[377581170,1754448649248,-276.85928034,0.00035616,14]
[377581172,1754448649257,-400.0,0.00035616,14]
[377581174,1754448649267,-1009.21,0.00035616,14]
[377581176,1754448649277,-400.0,0.00035616,14]
[377581178,1754448649287,-151.0,0.00035616,7]
[377581180,1754448649296,-400.0,0.00035616,14]
[377581182,1754448649305,-1056.91,0.00035616,14]
[377581184,1754448649315,-168.87073082,0.00035616,2]
[377581186,1754448649325,-454.78,0.00035616,14]
[377581188,1754448649334,-1461.35,0.00035616,14]
[377581190,1754448649343,-400.0,0.00035616,14]
[377581192,1754448649353,-400.48406449,0.00035616,14]
[377581194,1754448649362,-519.19,0.00035616,14]
[377581196,1754448649371,-400.0,0.00035616,14]
[377581198,1754448649380,-400.0,0.00035616,14]
[377581200,1754448649390,-1050.13,0.00035616,14]
[377581202,1754448649399,-400.0,0.00035616,14]
[377581204,1754448649410,-540.73,0.00035616,14]
[377581206,1754448649419,-400.0,0.00035616,14]
[377581208,1754448649429,-400.0,0.00035616,14]
[377581210,1754448649438,-540.73,0.00035616,14]
[377581212,1754448649447,-540.73,0.00035616,14]
[377581214,1754448649457,-540.73,0.00035616,14]
[377581216,1754448649466,-540.73,0.00035616,14]
[377581218,1754448649475,-540.73,0.00035616,14]
[377581220,1754448649485,-1088.04,0.00035616,14]
[377581222,1754448649494,-540.73,0.00035616,14]
[377581224,1754448649503,-1907.53,0.00035616,14]
[377581226,1754448649512,-540.73,0.00035616,14]
[377581227,1754448649521,-400.0,0.00035616,14]
[377581228,1754448649531,-400.0,0.00035616,14]
[377581229,1754448649540,-402.51547337,0.00035616,14]
[377581230,1754448649549,-1615.6,0.00035616,14]
[377581231,1754448649559,-400.0,0.00035616,14]
[377581232,1754448649568,-1550.81,0.00035616,14]
[377581233,1754448649578,-400.0,0.00035616,14]
[377581234,1754448649587,-643.63,0.00035616,2]
[377581235,1754448649597,-152.908154,0.00035616,7]
[377581236,1754448649606,-400.0,0.00035616,14]
[377581237,1754448649616,-400.0,0.00035616,14]
[377581238,1754448649626,-400.0,0.00035616,14]
[377581239,1754448649635,-1830.1,0.00035616,14]
[377581240,1754448649644,-400.0,0.00035616,14]
[377581241,1754448649654,-400.0,0.00035616,14]
[377581242,1754448649663,-400.0,0.00035616,14]
[377581243,1754448649673,-802.15,0.00035616,14]
[377581244,1754448649682,-153.776993,0.00035616,7]
[377581245,1754448649691,-417.37,0.00035616,14]
[377581246,1754448649700,-500.0,0.00035616,14]
[377581247,1754448649709,-500.0,0.00035616,14]
[377581248,1754448649718,-3675.96,0.00035616,14]
[377581249,1754448649727,-400.0,0.00035616,14]
[377581250,1754448649737,-500.0,0.00035616,14]
[377581251,1754448649746,-510.14331313,0.00035616,14]
[377581252,1754448649755,-1532.37,0.00035616,14]
[377581254,1754448649764,-498.81,0.00035616,14]
[377581255,1754448649774,-400.0,0.00035616,14]
[377581256,1754448649783,-151.0,0.00035616,7]
[377581257,1754448649792,-401.2411722,0.00035616,14]
[377581258,1754448649801,-156.846242,0.00035616,7]
[377581259,1754448649811,-151.0,0.00035616,7]
[377581260,1754448649820,-675.67,0.00035616,14]
[377581261,1754448649830,-400.0,0.00035616,14]
[377581262,1754448649839,-151.0,0.00035616,7]
[377581263,1754448649850,-1930.27,0.00035616,14]
[377581264,1754448649863,-400.0,0.00035616,14]
[377581265,1754448649872,-477.88,0.00035616,14]
[377581266,1754448649882,-400.0,0.00035616,14]
[377581267,1754448649892,-400.0,0.00035616,14]
[377581268,1754448649901,-400.0,0.00035616,14]
[377581269,1754448649910,-1895.26,0.00035616,14]
[377581270,1754448649919,-400.0,0.00035616,14]
[377581271,1754448649929,-151.0,0.00035616,7]
[377581272,1754448649939,-152.536912,0.00035616,7]
[377581273,1754448649949,-2398.75,0.00035616,14]
[377581274,1754448649958,-1000.88,0.00035616,14]
[377581275,1754448649968,-400.0,0.00035616,14]
[377581276,1754448649977,-400.0,0.00035616,14]
[377581277,1754448649988,-693.8,0.00035616,14]
[377581278,1754448649998,-400.0,0.00035616,14]
[377581279,1754448650007,-1056.68,0.00035616,14]
[377581280,1754448650016,-400.0,0.00035616,14]
[377581281,1754448650026,-400.0,0.00035616,14]
[377581282,1754448650036,-400.0,0.00035616,14]
[377581283,1754448650045,-694.7,0.00035616,14]
[377581284,1754448650055,-400.0,0.00035616,14]
[377581285,1754448650064,-1000.0,0.00035616,14]
[377581286,1754448650073,-400.0,0.00035616,14]
[377581287,1754448650082,-152.139033,0.00035616,7]
[377581288,1754448650091,-400.0,0.00035616,14]
[377581289,1754448650101,-400.0,0.00035616,14]
[377581290,1754448650111,-400.0,0.00035616,14]
[377581291,1754448650120,-1087.98,0.00035616,14]
[377581292,1754448650130,-400.0,0.00035616,14]
[377581293,1754448650139,-400.0,0.00035616,14]
[377581294,1754448650149,-400.0,0.00035616,14]
[377581295,1754448650158,-1377.85,0.00035616,14]
[377581296,1754448650167,-1317.27,0.00035616,14]
[377581297,1754448650177,-660.48,0.00035616,14]
[377581298,1754448650186,-432.07,0.00035616,14]
[377581299,1754448650196,-1841.73,0.00035616,14]
[377581300,1754448650205,-1377.85,0.00035616,14]
[377581301,1754448650214,-400.0,0.00035616,14]
[377581302,1754448650224,-500.0,0.00035616,14]
[377581303,1754448650234,-1706.66,0.00035616,14]
[377581304,1754448650243,-1377.85,0.00035616,14]
[377581305,1754448650253,-151.0,0.00035616,2]
[377581306,1754448650262,-1377.85,0.00035616,14]
[377581308,1754448650272,-500.0,0.00035616,14]
[377581309,1754448650281,-500.0,0.00035616,14]
[377581310,1754448650290,-1377.85,0.00035616,14]